bitfinex-derivatives/quotes_BTCF0:USTF0_20241013
["timestamp","ask_amount","ask_price","bid_price","bid_amount"]
[1728784031878,0.440543,63027.0,63026.0,0.26811237]
[1728784032682,0.540543,63027.0,63026.0,0.26811237]
[1728784033875,0.541543,63027.0,63026.0,0.26811237]
[1728784034075,0.541543,63027.0,63026.0,0.26911237]
[1728784034586,0.540543,63027.0,63026.0,0.26911237]
[1728784034774,0.540543,63027.0,63026.0,0.27011237]
[1728784035682,0.540543,63027.0,63026.0,0.27011165]
[1728784036976,0.62810907,63027.0,63026.0,0.002]
[1728784038788,0.26730907,63027.0,63026.0,0.03072271]
[1728784038981,0.42528951,63027.0,63026.0,0.002]
[1728784041187,0.26730907,63027.0,63026.0,0.002]
[1728784041686,0.18796607,63027.0,63026.0,0.002]
[1728784041992,0.18796607,63027.0,63026.0,0.02987943]
[1728784042286,0.18796607,63027.0,63026.0,0.002]
[1728784044887,0.1004,63027.0,63026.0,0.55227908]
[1728784045190,0.1004,63027.0,63026.0,0.44112716]
[1728784045588,0.1004,63027.0,63026.0,0.5521663]
[1728784045788,0.1004,63027.0,63026.0,0.44112716]
[1728784046087,0.1004,63027.0,63026.0,0.55216683]
[1728784046287,0.1004,63027.0,63026.0,0.55116683]
[1728784046488,0.1004,63027.0,63026.0,0.55216683]
[1728784048687,0.1004,63027.0,63026.0,0.38114949]
[1728784049490,0.0004,63027.0,63026.0,0.38114949]
[1728784049690,0.1004,63027.0,63026.0,0.441264]
[1728784051889,0.08756249,63027.0,63026.0,0.0024]
[1728784052078,0.22981609,63027.0,63026.0,0.0024]
[1728784052283,0.08756249,63027.0,63026.0,0.0024]
[1728784056991,0.22982633,63027.0,63026.0,0.0024]
[1728784059096,0.14226384,63027.0,63026.0,0.56799446]
[1728784060101,0.14226384,63027.0,63026.0,0.44101248]
[1728784061491,0.14226384,63027.0,63026.0,0.56799776]
[1728784061689,0.14226384,63027.0,63026.0,0.44101248]
[1728784062297,0.14226384,63027.0,63026.0,0.6347524]
[1728784062496,0.14226384,63027.0,63026.0,0.44101248]
[1728784064394,0.14226384,63027.0,63026.0,0.44011601]
[1728784065293,0.14226384,63027.0,63026.0,0.56710701]
[1728784065496,0.079341,63028.0,63026.0,0.56710701]
[1728784065722,0.079341,63028.0,63027.0,0.43771601]
[1728784066098,0.079341,63028.0,63027.0,0.56470701]
[1728784066904,0.079341,63028.0,63027.0,0.56570701]
[1728784067093,0.079341,63028.0,63027.0,0.26851481]
[1728784068398,0.079341,63028.0,63027.0,0.26951481]
[1728784074002,0.25321773,63028.0,63027.0,0.002]
[1728784074199,0.34077737,63028.0,63027.0,0.002]
[1728784075407,0.22381031,63028.0,63027.0,0.002]
[1728784076202,0.16690064,63028.0,63027.0,0.002]
[1728784082003,0.079341,63028.0,63027.0,0.43957839]
[1728784082815,0.1,63031.0,63027.0,0.43957839]
[1728784083010,0.1,63031.0,63029.0,0.11113136]
[1728784083011,0.079339,63030.0,63029.0,0.11113136]
[1728784083210,0.079339,63030.0,63029.0,0.37864293]
[1728784084915,0.079339,63030.0,63029.0,0.37964293]
[1728784086110,0.079339,63030.0,63029.0,0.26851157]
[1728784089009,0.16689962,63030.0,63029.0,0.001]
[1728784089204,0.22380993,63030.0,63029.0,0.001]
[1728784097223,0.1,63031.0,63029.0,0.43768624]
[1728784097423,0.179337,63031.0,63030.0,0.43668624]
[1728784098821,0.180337,63031.0,63030.0,0.43668624]
[1728784100024,1.356297,63031.0,63030.0,0.26703676]
[1728784100721,1.401997,63031.0,63030.0,0.26703676]
[1728784100917,1.401997,63031.0,63030.0,0.18474793]
[1728784101124,1.401997,63031.0,63017.0,0.20607338]
[1728784101125,0.47596,63030.0,63019.0,0.11113641]
[1728784101324,0.540551,63020.0,63018.0,0.11113641]
[1728784101525,0.079354,63018.0,63017.0,0.11113641]
[1728784101724,0.179754,63018.0,63017.0,0.11113641]
[1728784101927,0.079358,63015.0,63014.0,0.11113641]
[1728784102221,0.079361,63012.0,63011.0,0.30893641]
[1728784102427,0.178361,63012.0,63011.0,0.30893641]
[1728784102618,0.178761,63012.0,63011.0,0.30893641]
[1728784102818,0.1004,63012.0,63011.0,0.30893641]
[1728784103021,0.0994,63012.0,63011.0,0.1978]
[1728784104129,0.178761,63012.0,63011.0,0.1978]
[1728784104618,0.179761,63012.0,63011.0,0.1978]
[1728784104928,0.179761,63012.0,63011.0,0.1988]
[1728784104929,0.180761,63012.0,63011.0,0.1988]
[1728784108125,0.081761,63012.0,63011.0,0.1988]
[1728784108430,0.181761,63012.0,63011.0,0.1988]
[1728784112151,0.14205324,63012.0,63011.0,0.3411525]
[1728784116117,0.14205324,63012.0,63011.0,0.4602168]
[1728784118222,0.1,63013.0,63011.0,0.4602168]
[1728784118533,0.1,63013.0,63012.0,0.2614168]
[1728784119233,0.27936,63013.0,63012.0,0.1190643]
[1728784119432,0.28036,63013.0,63012.0,0.1190643]
[1728784120025,0.28036,63013.0,63012.0,0.11885741]
[1728784120326,0.28136,63013.0,63012.0,0.11885741]
[1728784120932,0.18136,63013.0,63012.0,0.11985741]
[1728784121128,0.18136,63013.0,63012.0,0.21487242]
[1728784122029,0.18136,63013.0,63012.0,0.11985741]
[1728784122238,0.28136,63013.0,63012.0,0.11985741]
[1728784122832,0.54216,63013.0,63012.0,0.11985741]
[1728784123030,0.64216,63013.0,63012.0,0.11985741]
[1728784123425,0.74216,63013.0,63012.0,0.11985741]
[1728784123636,0.64216,63013.0,63012.0,0.08019599]
[1728784123831,0.64216,63013.0,63012.0,0.06436128]
[1728784124134,0.64216,63013.0,63012.0,0.001]
[1728784124526,0.078361,63012.0,63011.0,0.06336128]
[1728784124729,0.078761,63012.0,63011.0,0.06336128]
[1728784124929,0.077761,63012.0,63011.0,0.06336128]
[1728784125623,0.077761,63012.0,63010.0,0.06336128]
[1728784125826,0.079763,63011.0,63010.0,0.06336128]
[1728784126127,1.154883,63011.0,63009.0,0.06334723]
[1728784126334,0.079764,63010.0,63009.0,0.06334723]
[1728784126632,0.079365,63009.0,63008.0,0.06334723]
[1728784126932,0.754885,63009.0,63008.0,0.06334723]
[1728784127151,0.079377,63000.0,62996.0,0.047509]
[1728784127336,0.1004,62997.0,62996.0,0.047509]
[1728784127528,0.0994,62997.0,62996.0,0.047509]
[1728784128529,0.1004,62997.0,62996.0,0.047509]
[1728784129023,0.1004,62997.0,62995.0,0.0673]
[1728784129231,0.0004,62996.0,62995.0,0.0673]
[1728784129536,0.0004,62996.0,62995.0,0.11482005]
[1728784130844,0.0014,62996.0,62995.0,0.11482005]
[1728784131033,0.1014,62996.0,62995.0,0.11482005]
[1728784131534,0.1024,62996.0,62995.0,0.11482005]
[1728784133743,0.1024,62996.0,62995.0,0.0673]
[1728784134042,0.1024,62996.0,62995.0,0.11482005]
[1728784134239,0.1024,62996.0,62995.0,0.0673]
[1728784134448,0.02751244,62997.0,62995.0,0.32870875]
[1728784134741,0.079379,62998.0,62996.0,0.26180875]
[1728784135047,0.079379,62998.0,62997.0,0.1192579]
[1728784135442,1.18377365,62998.0,62997.0,0.1984146]
[1728784135644,0.4772,62997.0,62991.0,0.09498804]
[1728784135868,0.079389,62990.0,62982.0,0.11113641]
[1728784136043,0.079798,62983.0,62981.0,0.11113641]
[1728784136247,0.0004,62983.0,62982.0,0.14170443]
[1728784136743,0.2004,62983.0,62982.0,0.09496791]
[1728784136946,0.079403,62979.0,62978.0,0.09496791]
[1728784137252,0.079403,62979.0,62965.0,0.44022]
[1728784137253,0.0004,62979.0,62975.0,0.09496791]
[1728784137443,0.279807,62976.0,62975.0,0.09492123]
[1728784137672,0.2004,62976.0,62972.0,0.45572125]
[1728784137948,0.079413,62971.0,62969.0,0.09492125]
[1728784138249,0.5608,62973.0,62962.0,0.0663]
[1728784138250,0.079418,62967.0,62962.0,0.16122125]
[1728784138440,0.1004,62963.0,62962.0,0.0663]
[1728784139247,0.1,62963.0,62962.0,0.0663]
[1728784139557,0.0994,62963.0,62962.0,0.0667]
[1728784139847,0.1004,62963.0,62962.0,0.0677]
[1728784140050,0.2004,62963.0,62962.0,0.0677]
[1728784141151,0.2014,62963.0,62962.0,0.0014]
[1728784141347,0.2014,62963.0,62962.0,0.04877613]
[1728784141550,0.2004,62963.0,62962.0,0.0004]
[1728784141749,0.002,62963.0,62962.0,0.0004]
[1728784142048,0.202,62963.0,62962.0,0.0004]
[1728784143324,0.002,62963.0,62962.0,0.0004]
[1728784143456,0.102,62963.0,62962.0,0.0004]
[1728784143964,0.002,62963.0,62962.0,0.0004]
[1728784144671,0.440615,62970.0,62964.0,0.079421]
[1728784144854,0.440615,62970.0,62966.0,0.04725587]
[1728784145256,0.440615,62970.0,62965.0,0.11375587]
[1728784145467,0.0004,62966.0,62965.0,0.11375587]
[1728784146366,0.365,62970.0,62967.0,0.079418]
[1728784146557,0.3622,62970.0,62967.0,0.12665294]
[1728784147363,0.2596,62970.0,62968.0,0.12665194]
[1728784147569,0.2606,62970.0,62969.0,0.0004]
[1728784147958,0.2606,62970.0,62969.0,0.04763494]
[1728784148458,0.2596,62970.0,62969.0,0.04763494]
[1728784148970,0.2586,62970.0,62969.0,0.04763494]
[1728784149162,0.2586,62970.0,62969.0,0.0004]
[1728784149762,0.2586,62970.0,62969.0,0.0014]
[1728784150480,0.2586,62970.0,62969.0,0.048655]
[1728784151166,0.15,62971.0,62969.0,0.0014]
[1728784151470,0.15,62971.0,62969.0,0.04866438]
[1728784151675,0.079413,62972.0,62970.0,0.04726438]
[1728784151868,0.079413,62972.0,62971.0,0.0633]
[1728784152067,0.079413,62972.0,62971.0,0.11056438]
[1728784152581,0.0004,62973.0,62971.0,0.20588091]
[1728784152762,0.0004,62973.0,62972.0,0.06316791]
[1728784153171,0.0004,62973.0,62971.0,0.142713]
[1728784153369,0.0004,62972.0,62971.0,0.142713]
[1728784153668,0.0004,62976.0,62971.0,0.65611662]
[1728784153876,0.0004,62979.0,62978.0,0.079404]
[1728784154072,0.0004,62983.0,62981.0,0.0794]
[1728784154264,0.0004,62983.0,62982.0,0.062]
[1728784154465,0.31352599,62984.0,62982.0,0.062]
[1728784154662,0.31352599,62984.0,62983.0,0.06306573]
[1728784155271,0.31352599,62984.0,62982.0,0.0624]
[1728784155472,0.0004,62983.0,62982.0,0.0624]
[1728784156870,0.0004,62983.0,62982.0,0.12550291]
[1728784157064,0.21306642,62987.0,62982.0,0.12550291]
[1728784157263,0.21306642,62987.0,62986.0,0.04733247]
[1728784157973,0.21306642,62987.0,62985.0,0.04733247]
[1728784158477,0.0004,62986.0,62984.0,0.11323247]
[1728784158668,0.0004,62985.0,62984.0,0.11323247]
[1728784158868,0.440595,62985.0,62984.0,0.0659]
[1728784159069,0.079795,62985.0,62984.0,0.0659]
[1728784159770,0.092795,62985.0,62984.0,0.0659]
[1728784160076,0.092795,62985.0,62984.0,0.11325876]
[1728784161076,0.098795,62985.0,62984.0,0.11425876]
[1728784161279,0.085795,62985.0,62984.0,0.11425876]
[1728784161573,0.081795,62985.0,62984.0,0.0659]
[1728784162172,0.082795,62985.0,62984.0,0.12900291]
[1728784163871,0.082795,62985.0,62984.0,0.09725291]
[1728784164070,0.082795,62985.0,62984.0,0.03415]
[1728784164566,0.14531475,62985.0,62984.0,0.03415]
[1728784164873,0.14531475,62985.0,62984.0,0.03455]
[1728784164874,0.20069848,62985.0,62984.0,0.03455]
[1728784165180,0.34601171,62985.0,62984.0,0.03455]
[1728784166079,0.07556129,62985.0,62984.0,0.03455]
[1728784166268,0.07556129,62985.0,62984.0,0.263947]
[1728784167066,0.003,62985.0,62984.0,0.263947]
[1728784167275,0.13090048,62985.0,62984.0,0.263947]
[1728784167477,0.16978746,62985.0,62984.0,0.263947]
[1728784167666,0.13090048,62985.0,62984.0,0.263947]
[1728784168170,0.20046177,62985.0,62984.0,0.263947]
[1728784168679,0.19846177,62985.0,62984.0,0.263947]
[1728784168870,0.06956129,62985.0,62984.0,0.265947]
[1728784169779,0.06956129,62985.0,62984.0,0.115947]
[1728784170074,0.19546177,62985.0,62984.0,0.115947]
[1728784170275,0.06956129,62985.0,62984.0,0.03655]
[1728784170879,0.06955517,62985.0,62984.0,0.03655]
[1728784171575,0.0004,62986.0,62984.0,0.03655]
[1728784171770,0.0004,62986.0,62985.0,0.04745863]
[1728784172280,0.0004,62986.0,62985.0,0.04745833]
[1728784172478,0.0004,62986.0,62984.0,0.03655]
[1728784172677,0.0004,62986.0,62984.0,0.09980964]
[1728784172874,0.0004,62985.0,62984.0,0.09980964]
[1728784173381,0.0004,62985.0,62984.0,0.03655]
[1728784173687,0.0004,62985.0,62984.0,0.09780964]
[1728784173876,0.079795,62985.0,62984.0,0.09780964]
[1728784174075,0.079795,62985.0,62984.0,0.03455]
[1728784174276,0.079795,62985.0,62984.0,0.03555]
[1728784174681,0.079795,62985.0,62984.0,0.09880964]
[1728784175482,0.079795,62985.0,62984.0,0.03555]
[1728784175685,0.079795,62985.0,62984.0,0.09889313]
[1728784176487,0.0004,62985.0,62984.0,0.03555]
[1728784179687,0.1585275,62985.0,62984.0,0.03555]
[1728784179884,0.11868988,62985.0,62984.0,0.03555]
[1728784180088,0.11868988,62985.0,62984.0,0.114947]
[1728784180288,0.11868947,62985.0,62984.0,0.114947]
[1728784180479,0.27639046,62985.0,62984.0,0.114947]
[1728784181391,0.11868947,62985.0,62984.0,0.114947]
[1728784181879,0.14241999,62985.0,62984.0,0.114947]
[1728784182082,0.26070946,62985.0,62984.0,0.114947]
[1728784182595,0.11868947,62985.0,62984.0,0.114947]
[1728784183290,0.15827178,62985.0,62984.0,0.114947]
[1728784183588,0.11868947,62985.0,62984.0,0.114947]
[1728784183793,0.27656125,62985.0,62984.0,0.114947]
[1728784184988,0.26080993,62985.0,62984.0,0.11991202]
[1728784185392,0.11867793,62985.0,62984.0,0.11991202]
[1728784185788,0.11867793,62985.0,62984.0,0.114947]
[1728784186389,0.11867793,62985.0,62984.0,0.836547]
[1728784186690,0.142532,62985.0,62984.0,0.9520482]
[1728784187389,0.0004,62985.0,62984.0,0.9520482]
[1728784187591,0.0004,62985.0,62984.0,1.08970893]
[1728784188293,0.0004,62985.0,62984.0,0.9520482]
[1728784188892,0.0004,62985.0,62984.0,1.08969643]
[1728784189191,0.0004,62985.0,62984.0,0.9520482]
[1728784189608,0.0004,62985.0,62984.0,0.95207681]
[1728784189784,0.0004,62985.0,62984.0,0.95207291]
[1728784190496,0.0004,62985.0,62984.0,1.08975664]
[1728784190885,0.0004,62985.0,62984.0,0.95207291]
[1728784191895,0.0004,62985.0,62984.0,1.04723792]
[1728784192691,0.0004,62985.0,62984.0,1.05220305]
[1728784193397,0.0004,62985.0,62984.0,0.95703804]
[1728784193997,0.0004,62985.0,62984.0,1.0522134]
[1728784194494,0.0004,62985.0,62984.0,1.05708312]
[1728784194694,0.0004,62985.0,62984.0,0.94151213]
[1728784194695,0.11868066,62985.0,62984.0,0.94151213]
[1728784194892,0.06994787,62985.0,62984.0,0.94151213]
[1728784197296,0.19629579,62985.0,62984.0,0.94151213]
[1728784197685,0.06994787,62985.0,62984.0,0.94151213]
[1728784198492,0.06994787,62985.0,62984.0,0.9415121]
[1728784199093,0.03106839,62985.0,62984.0,0.9415121]
[1728784199500,0.19123452,62985.0,62984.0,0.9415121]
[1728784199701,0.06994762,62985.0,62984.0,0.9415121]
[1728784200399,0.06994762,62985.0,62984.0,2.01783189]
[1728784201800,0.0004,62992.0,62991.0,0.079388]
[1728784202001,0.0004,62992.0,62991.0,0.29485279]
[1728784202201,0.03151816,63000.0,62991.0,0.29525279]
[1728784202406,0.03151816,63000.0,62997.0,0.06345416]
[1728784204508,0.105379,62998.0,62997.0,0.06545416]
[1728784205913,0.105379,62998.0,62997.0,0.002]
[1728784206097,0.105379,62998.0,62997.0,0.06545416]
[1728784207409,0.105379,62998.0,62997.0,0.002]
[1728784207710,0.105379,62998.0,62997.0,0.06545416]
[1728784208616,0.105379,62998.0,62997.0,0.06547776]
[1728784208617,0.205379,62998.0,62997.0,0.06547776]
[1728784208911,0.205379,62998.0,62997.0,0.002]
[1728784209101,0.205379,62998.0,62997.0,0.04961072]
[1728784209408,0.205379,62998.0,62997.0,0.002]
[1728784213413,0.105379,62998.0,62997.0,0.002]
[1728784216801,0.17492724,62998.0,62997.0,0.002]
[1728784217010,0.30134075,62998.0,62997.0,0.002]
[1728784217216,0.17492724,62998.0,62997.0,0.002]
[1728784217807,0.30134075,62998.0,62997.0,0.002]
[1728784218609,0.20122088,62998.0,62997.0,0.002]
[1728784218813,0.14427917,62998.0,62997.0,0.08138]
[1728784220606,0.14427917,62998.0,62997.0,0.10937295]
[1728784221326,0.026,62998.0,62997.0,0.10937295]
[1728784221621,0.026,62998.0,62997.0,0.11433711]
[1728784221622,0.21463386,62998.0,62997.0,0.11433711]
[1728784221820,0.14426605,62998.0,62997.0,0.11433711]
[1728784222215,0.30216355,62998.0,62997.0,0.11433711]
[1728784222713,0.30216355,62998.0,62997.0,0.10937295]
[1728784222714,0.14426605,62998.0,62997.0,0.10937295]
[1728784224843,0.14426605,62998.0,62997.0,0.18869065]
[1728784224844,0.026,62998.0,62997.0,0.18869065]
[1728784225023,0.026,62998.0,62997.0,0.10937295]
[1728784226316,0.026,62998.0,62997.0,0.17277133]
[1728784226514,0.026,62998.0,62997.0,0.10937295]
[1728784227424,0.079369,63006.0,62997.0,0.02799295]
[1728784227619,0.079369,63006.0,63004.0,0.1]
[1728784228617,0.080369,63006.0,63004.0,0.1]
[1728784229918,0.082369,63006.0,63004.0,0.1]
[1728784231720,0.082369,63006.0,63004.0,0.16339084]
[1728784232123,0.082369,63006.0,63003.0,0.06339084]
[1728784232328,0.082369,63006.0,62999.0,0.0793177]
[1728784232329,0.082369,63006.0,63005.0,0.04752388]
[1728784233127,0.07937,63005.0,63004.0,0.04752388]
[1728784233317,0.07977,63005.0,63004.0,0.04752388]
[1728784233526,0.07977,63005.0,63002.0,0.06339084]
[1728784233827,0.0004,63003.0,63002.0,0.06339084]
[1728784234029,0.0004,63003.0,63001.0,0.06339084]
[1728784234323,0.0004,63003.0,63002.0,0.06339084]
[1728784234826,0.0004,63003.0,63002.0,0.1]
[1728784235827,0.0004,63003.0,63002.0,0.16339084]
[1728784236223,0.0004,63003.0,63002.0,0.52416034]
[1728784236520,0.0004,63003.0,63002.0,0.4608]
[1728784239822,0.0004,63003.0,63002.0,0.1]
[1728784239823,0.11865855,63003.0,63002.0,0.1]
[1728784243830,0.11865855,63003.0,62999.0,0.10761474]
[1728784244030,0.0004,63000.0,62999.0,0.10761474]
[1728784244228,0.11865855,63000.0,62999.0,0.10761474]
[1728784245131,0.11865855,63000.0,62999.0,0.11161474]
[1728784245334,0.11865855,63000.0,62999.0,0.11461474]
[1728784246028,0.11865855,63000.0,62999.0,0.47541474]
[1728784246833,0.0004,63000.0,62999.0,0.47541474]
[1728784247135,0.0004,63000.0,62999.0,0.57541474]
[1728784251224,0.0004,63000.0,62999.0,0.65473244]
[1728784253734,0.0004,63000.0,62999.0,0.29393244]
[1728784253940,0.0004,63000.0,62999.0,0.65473244]
[1728784254831,0.03106203,63000.0,62999.0,0.57541474]
[1728784255439,0.11865613,63000.0,62999.0,0.57541474]
[1728784256539,0.11865613,63000.0,62999.0,0.21461474]
[1728784256727,0.11865613,63000.0,62999.0,0.57541474]
[1728784256934,0.11865613,63000.0,62999.0,0.21461474]
[1728784257134,0.11865613,63000.0,62999.0,0.57541474]
[1728784258039,0.11865613,63000.0,62999.0,0.5803787]
[1728784259131,0.0004,63000.0,62999.0,0.6803787]
[1728784259337,0.1186524,63000.0,62999.0,0.5803787]
[1728784259844,0.1186524,63000.0,62999.0,0.57541474]
[1728784260141,0.04872103,63002.0,62999.0,1.75161474]
[1728784260345,0.1742536,63005.0,63004.0,0.079371]
[1728784260535,0.05733232,63005.0,63004.0,0.640171]
[1728784260731,0.0004,63005.0,63004.0,0.640171]
[1728784261429,0.17416186,63005.0,63004.0,0.640171]
[1728784261832,0.17416186,63005.0,63004.0,0.89564422]
[1728784262034,0.17376186,63005.0,63004.0,0.89604422]
[1728784262260,0.17376186,63005.0,63004.0,0.7581773]
[1728784262536,0.17576186,63005.0,63004.0,0.7581773]
[1728784262937,0.17576186,63005.0,63004.0,0.8533359]
[1728784262938,0.17776186,63005.0,63004.0,0.8533359]
[1728784263145,0.17776186,63005.0,63004.0,0.7581773]
[1728784264376,0.17776186,63005.0,63004.0,0.5581773]
[1728784264645,0.17776186,63005.0,63004.0,0.73745272]
[1728784264944,0.17776186,63005.0,63004.0,0.73745244]
[1728784265954,0.17776186,63005.0,63004.0,0.3612]
[1728784266338,0.17776186,63005.0,63004.0,0.42462033]
[1728784267139,0.17776186,63005.0,63004.0,0.3612]
[1728784267640,0.24406186,63005.0,63004.0,0.3612]
[1728784267948,0.24406186,63005.0,63004.0,0.0004]
[1728784268248,0.17776186,63005.0,63004.0,0.1004]
[1728784268642,0.004,63005.0,63004.0,0.1004]
[1728784269444,0.004,63005.0,63004.0,0.279771]
[1728784269845,0.04286922,63005.0,63004.0,0.179771]
[1728784270145,0.004,63005.0,63004.0,0.179771]
[1728784270343,0.07352944,63005.0,63004.0,0.179771]
[1728784276837,0.004,63005.0,63004.0,0.179771]
[1728784277043,0.004,63005.0,63004.0,0.24319341]
[1728784277552,0.004,63005.0,63004.0,0.179771]
[1728784280154,0.004,63005.0,63004.0,0.22734577]
[1728784283049,0.004,63005.0,63004.0,0.58814577]
[1728784285055,0.12224777,63005.0,63004.0,0.440171]
[1728784285262,0.12224777,63005.0,63004.0,0.540171]
[1728784291962,0.12224777,63005.0,63004.0,0.179371]
[1728784292166,0.004,63005.0,63004.0,0.540171]
[1728784293361,0.004,63005.0,63004.0,0.60359341]
[1728784293967,0.004,63005.0,63004.0,0.540171]
[1728784294161,0.004,63005.0,63004.0,0.60359341]
[1728784295867,0.004,63005.0,63004.0,0.50359341]
[1728784296077,0.004,63005.0,63004.0,0.50367569]
[1728784296262,0.004,63005.0,63004.0,0.60367569]
[1728784298269,0.004,63005.0,63004.0,0.540171]
[1728784299858,0.004,63005.0,63004.0,0.3608]
[1728784300063,0.18337,63005.0,63004.0,0.3608]
[1728784300371,0.18337,63005.0,63002.0,0.0004]
[1728784300372,0.079373,63003.0,63002.0,0.0004]
[1728784300572,0.079773,63003.0,63002.0,0.0004]
[1728784300758,0.555933,63003.0,63002.0,0.0004]
[1728784300964,0.612433,63003.0,63002.0,0.0004]
[1728784301565,0.612433,63003.0,63002.0,0.0014]
[1728784302669,0.612433,63003.0,62999.0,0.0004]
[1728784302670,0.079376,63000.0,62999.0,0.0004]
[1728784302971,0.179776,63000.0,62999.0,0.0004]
[1728784303173,1.255976,63000.0,62999.0,0.0004]
[1728784303868,1.255976,63000.0,62999.0,0.0034]
[1728784304070,1.255976,63000.0,62999.0,0.0074]
[1728784307268,1.34358309,63000.0,62999.0,0.0074]
[1728784310078,1.34358356,63000.0,62999.0,0.0074]
[1728784310673,0.74358356,63000.0,62999.0,0.0074]
[1728784313873,0.26738356,63000.0,62999.0,0.0074]
[1728784314080,0.26738356,63000.0,62999.0,0.0034]
[1728784314277,0.184776,63000.0,62999.0,0.0034]
[1728784314484,0.084776,63000.0,62999.0,0.0034]
[1728784314873,0.187776,63000.0,62999.0,0.0004]
[1728784315572,0.184776,63000.0,62999.0,0.0004]
[1728784315772,0.189776,63000.0,62999.0,0.0004]
[1728784316975,0.189776,63000.0,62996.0,0.04764349]
[1728784316976,0.184776,63000.0,62996.0,0.04764349]
[1728784317174,0.17978,62997.0,62996.0,0.04764349]
[1728784317677,0.17978,62997.0,62994.0,0.04764349]
[1728784317678,0.1004,62997.0,62994.0,0.04764349]
[1728784317879,0.079387,62992.0,62991.0,0.06630613]
[1728784318081,0.13966484,62992.0,62991.0,0.00278094]
[1728784318285,0.14006484,62992.0,62991.0,0.0004]
[1728784318875,0.14006484,62992.0,62991.0,0.0034]
[1728784320380,0.14506484,62992.0,62991.0,0.0034]
[1728784320985,0.04906484,62992.0,62991.0,0.0004]
[1728784321689,0.05006484,62992.0,62991.0,0.04790753]
[1728784321887,0.05006484,62992.0,62991.0,0.14790753]
[1728784322092,0.05006484,62992.0,62991.0,0.1004]
[1728784322393,0.17601379,62992.0,62991.0,0.1004]
[1728784322694,0.21489364,62992.0,62991.0,0.1004]
[1728784323885,0.08494469,62992.0,62991.0,0.1004]
[1728784324278,0.07994469,62992.0,62991.0,0.1004]
[1728784324683,0.08294469,62992.0,62991.0,0.1004]
[1728784325077,0.08194469,62992.0,62991.0,0.1004]
[1728784325289,0.08494469,62992.0,62991.0,0.1004]
[1728784327082,0.04527985,62992.0,62991.0,0.1004]
[1728784327290,0.23575113,62992.0,62991.0,0.179788]
[1728784327794,0.04527985,62992.0,62991.0,0.179788]
[1728784328391,0.0064,62992.0,62991.0,0.179788]
[1728784328589,0.09401036,62992.0,62991.0,0.179788]
[1728784328790,0.23574889,62992.0,62991.0,0.179788]
[1728784329288,0.0064,62992.0,62991.0,0.179788]
[1728784331283,0.0064,62992.0,62991.0,0.24331319]
[1728784331484,0.0064,62992.0,62991.0,0.179788]
[1728784333582,0.0064,62992.0,62991.0,0.24331319]
[1728784333784,0.085787,62992.0,62991.0,0.06392519]
[1728784334099,0.085787,62992.0,62991.0,0.0004]
[1728784334884,0.082787,62992.0,62991.0,0.0004]
[1728784335091,0.082787,62992.0,62991.0,0.0034]
[1728784335793,0.085787,62992.0,62991.0,0.0004]
[1728784336397,0.446587,62992.0,62991.0,0.0004]
[1728784337193,0.59116572,62992.0,62991.0,0.0004]
[1728784337699,0.79601835,62992.0,62991.0,0.0004]
[1728784338500,0.59116572,62992.0,62991.0,0.0004]
[1728784339199,0.59116572,62992.0,62986.0,0.0554]
[1728784339200,0.079393,62987.0,62986.0,0.0554]
[1728784339406,0.079394,62986.0,62985.0,0.0004]
[1728784339596,0.22397272,62986.0,62985.0,0.0004]
[1728784339791,0.22437272,62986.0,62985.0,0.0004]
[1728784340506,0.079403,62979.0,62978.0,0.0004]
[1728784340706,0.11868855,62979.0,62978.0,0.0004]
[1728784340906,0.22438172,62979.0,62978.0,0.0004]
[1728784341497,0.22439704,62979.0,62978.0,0.0004]
[1728784341692,0.22539704,62979.0,62978.0,0.0074]
[1728784341998,0.079411,62973.0,62972.0,0.05738172]
[1728784342192,0.21870335,62973.0,62972.0,0.05738172]
[1728784342397,0.26745227,62973.0,62972.0,0.05738172]
[1728784342696,0.32440504,62973.0,62972.0,0.05738172]
[1728784343798,0.70579404,62973.0,62962.0,0.0004]
[1728784343999,0.176819,62966.0,62962.0,0.0004]
[1728784344199,0.1004,62966.0,62965.0,0.21573568]
[1728784344399,0.169819,62966.0,62965.0,0.12057708]
[1728784344900,0.530619,62966.0,62965.0,0.12357708]
[1728784345203,0.530619,62966.0,62965.0,0.0134]
[1728784345703,0.532619,62966.0,62965.0,0.0104]
[1728784346504,0.56057691,62966.0,62965.0,0.0104]
[1728784347911,0.19977691,62966.0,62965.0,0.0104]
[1728784348097,0.56057691,62966.0,62965.0,0.0104]
[1728784350306,0.56057691,62966.0,62965.0,0.0014]
[1728784351815,0.57057691,62966.0,62965.0,0.0014]
[1728784352609,0.20977691,62966.0,62965.0,0.0014]
[1728784352816,0.57057691,62966.0,62965.0,0.0014]
[1728784354307,0.57057691,62966.0,62965.0,0.04882459]
[1728784355316,0.20977691,62966.0,62965.0,0.04882459]
[1728784356004,0.20977691,62966.0,62965.0,0.0014]
[1728784359516,0.20977691,62966.0,62962.0,0.0004]
[1728784359517,0.079423,62963.0,62962.0,0.0004]
[1728784359721,0.540623,62963.0,62962.0,0.0004]
[1728784360716,0.541623,62963.0,62962.0,0.0014]
[1728784361226,0.542623,62963.0,62962.0,0.0014]
[1728784363618,0.642623,62963.0,62962.0,0.0014]
[1728784363822,0.542623,62963.0,62962.0,0.0014]
[1728784365228,0.079428,62959.0,62943.0,0.04738395]
[1728784365433,0.079441,62949.0,62948.0,0.0586]
[1728784366428,0.079441,62949.0,62938.0,0.0008]
[1728784366429,0.079453,62940.0,62938.0,0.0008]
[1728784366634,0.1004,62939.0,62936.0,0.1154]
[1728784366927,0.0004,62937.0,62936.0,0.1154]
[1728784367431,0.179854,62939.0,62936.0,0.3797522]
[1728784367432,0.079455,62938.0,62936.0,0.3797522]
[1728784367626,0.079455,62938.0,62937.0,0.12060074]
[1728784368528,0.079455,62938.0,62937.0,0.26357776]
[1728784369532,0.081455,62938.0,62937.0,0.26299124]
[1728784370929,0.081455,62938.0,62937.0,0.21499307]
[1728784371435,0.081455,62938.0,62937.0,0.21499002]